bitfinex/quotes_ETHUSD_20220119
["timestamp","ask_amount","ask_price","bid_price","bid_amount"]
[1642619768504,3.952,3129.1,3128.8,0.00341054]
[1642619769006,3.1163,3129.6,3128.8,0.00341054]
[1642619769605,3.1163,3129.6,3128.8,1.00341054]
[1642619769806,2.86016145,3130.0,3128.8,1.00341054]
[1642619770011,2.7191032,3129.9,3128.9,0.00284211]
[1642619770209,2.7191032,3129.8,3128.9,0.00284211]
[1642619770408,2.7191032,3129.7,3128.8,0.00341054]
[1642619770707,2.72024005,3129.6,3128.8,0.00341054]
[1642619770906,0.00113685,3129.6,3128.8,0.00341054]
[1642619771106,2.72246439,3130.0,3128.8,1.00341054]
[1642619771406,2.72246439,3130.0,3128.9,0.00284211]
[1642619772056,2.72246439,3130.0,3128.8,0.00341054]
[1642619772650,5.64170563,3130.0,3128.8,0.00341054]
[1642619772846,2.71905385,3129.9,3128.8,0.00341054]
[1642619773248,0.0022737,3129.8,3128.8,0.30341054]
[1642619773448,0.0022737,3129.8,3128.7,0.00397896]
[1642619773648,0.00170527,3129.7,3128.9,0.00284211]
[1642619773848,2.72075912,3129.7,3128.9,1.43599498]
[1642619774047,2.7201907,3129.6,3128.9,2.03883709]
[1642619774249,2.71905385,3129.5,3129.2,1.38113164]
[1642619774447,0.00113685,3129.6,3129.2,1.68113164]
[1642619774851,0.00113685,3129.6,3129.0,0.00227369]
[1642619776098,0.00113685,3129.6,3129.1,1.2437522]
[1642619776302,0.00113685,3129.6,3129.1,1.8437522]
[1642619776504,0.00113685,3129.6,3129.2,0.00113684]
[1642619778806,0.00113685,3129.6,3129.5,1.17647115]
[1642619779006,0.00113685,3129.6,3129.5,1.47647115]
[1642619780053,0.00113685,3129.6,3129.2,0.30113684]
[1642619780654,0.00113685,3129.6,3129.2,0.00113684]
[1642619781457,0.00113685,3129.6,3129.1,0.00170527]
[1642619781658,0.00113685,3129.6,3129.0,0.00227369]
[1642619787149,0.00113685,3129.6,3128.6,1.3301954]
[1642619787350,2.71995289,3129.6,3128.6,1.33474278]
[1642619787549,2.71995289,3129.6,3128.7,0.00397896]
[1642619787949,3.5,3129.5,3128.6,1.88417436]
[1642619788149,0.00113685,3129.6,3128.7,1.41051142]
[1642619788353,0.00397896,3129.4,3128.7,1.41051142]
[1642619788549,3.91106286,3129.7,3128.7,2.41051142]
[1642619788550,0.00454739,3129.5,3128.7,2.41051142]
[1642619788749,1.1921,3129.7,3128.7,1.41051142]
[1642619788750,0.00341054,3129.3,3128.7,1.41051142]
[1642619788950,0.00397896,3129.4,3128.7,2.41051142]
[1642619789149,0.00284212,3129.2,3128.7,2.41051142]
[1642619789356,0.00341054,3129.3,3128.7,2.86751142]
[1642619789555,0.00227369,3129.1,3128.8,0.1278]
[1642619789755,0.00284212,3129.2,3128.8,0.1278]
[1642619789956,0.00170527,3129.0,3128.8,1.1278]
[1642619790155,0.00227369,3129.1,3128.8,1.4278]
[1642619790355,0.00113685,3128.9,3128.8,1.7278]
[1642619790555,1.1921,3129.7,3128.8,1.6]
[1642619790556,0.00170527,3129.0,3128.8,1.6]
[1642619790807,1.1921,3129.7,3128.8,1.7278]
[1642619790808,0.00113685,3128.9,3128.8,1.7278]
[1642619791010,0.00113685,3128.9,3128.8,0.7278]
[1642619791208,0.00113685,3128.9,3128.8,1.7278]
[1642619792006,0.00113685,3128.9,3128.8,0.7278]
[1642619792206,0.00113685,3128.9,3128.8,1.6]
[1642619792506,0.00113685,3128.9,3128.8,2.76053277]
[1642619792706,0.00113685,3128.9,3128.8,1.76053277]
[1642619792906,0.00113685,3128.9,3128.8,2.76053277]
[1642619793616,0.00113685,3128.9,3128.8,1.3]
[1642619794007,0.00113685,3128.9,3128.8,0.3]
[1642619795853,0.00113685,3128.9,3128.4,0.4278]
[1642619796358,0.00113685,3128.9,3128.6,1.25945172]
[1642619796553,0.00113685,3128.9,3128.6,1.55945172]
[1642619796957,0.00113685,3128.9,3128.6,1.85945172]
[1642619802949,0.00113685,3128.9,3128.6,1.80945172]
[1642619804755,0.00113685,3128.9,3128.6,1.93725172]
[1642619806902,0.00113685,3128.9,3128.6,0.25]
[1642619807102,0.00113685,3128.9,3128.5,0.00113685]
[1642619807503,0.00113685,3128.9,3128.1,0.00341054]
[1642619807705,0.00113685,3128.9,3128.0,0.00397897]
[1642619807905,0.00113685,3128.9,3128.2,1.53139431]
[1642619808304,2.71995647,3128.9,3128.3,0.0022737]
[1642619808506,0.00113685,3128.9,3128.3,0.0022737]
[1642619809108,0.00113685,3128.9,3128.3,1.0022737]
[1642619809553,0.00113685,3128.9,3128.4,0.00170527]
[1642619810554,0.00113685,3128.9,3128.3,0.5870737]
[1642619810754,0.00113685,3128.9,3128.4,0.00170527]
[1642619814805,0.00113685,3128.9,3128.4,0.80540527]
[1642619815807,0.00113685,3128.9,3128.4,0.93320527]
[1642619816209,0.00113685,3128.9,3128.4,0.00170527]
[1642619816809,0.00113685,3128.9,3128.2,0.00284212]
[1642619816810,2.7200571,3128.9,3128.2,0.00284212]
[1642619817062,2.71892025,3128.8,3128.2,0.00284212]
[1642619817249,0.00113685,3128.9,3128.2,0.00284212]
[1642619818052,2.72037318,3128.9,3128.2,0.00284212]
[1642619818253,2.71923633,3128.8,3128.2,0.00284212]
[1642619818452,0.00113685,3128.9,3128.2,0.00284212]
[1642619818853,0.00113685,3128.9,3128.2,1.56647116]
[1642619819057,0.00113685,3128.9,3128.2,2.86647116]
[1642619819254,0.00113685,3128.9,3128.3,0.0022737]
[1642619819658,2.72037708,3128.9,3128.3,0.0022737]
[1642619819854,0.00113685,3128.9,3128.3,0.3022737]
[1642619820053,0.00113685,3128.9,3128.3,0.3]
[1642619820255,0.00113685,3128.9,3128.4,0.00170527]
[1642619820906,0.00113685,3128.9,3128.2,0.00284212]
[1642619821107,2.7191733,3129.1,3128.2,1.49464203]
[1642619821506,0.00170527,3129.0,3128.3,0.0022737]
[1642619821907,0.00113685,3128.9,3128.3,0.0022737]
[1642619823908,0.00113685,3128.9,3128.2,2.39691573]
[1642619824311,0.00284212,3128.8,3128.2,2.52471573]
[1642619824768,0.0022737,3128.7,3128.2,2.52471573]
[1642619825169,0.00170528,3128.6,3128.2,2.52471573]
[1642619825468,2.71920693,3129.1,3128.2,3.12471573]
[1642619825469,0.00113685,3128.5,3128.2,3.12471573]
[1642619825871,3.02950046,3129.0,3128.2,1.7278]
[1642619826070,2.71920693,3128.9,3128.2,0.6]
[1642619826269,2.72261748,3128.9,3128.2,0.3]
[1642619826470,0.00284212,3128.8,3128.3,0.3]
[1642619826671,0.00284212,3128.8,3128.0,0.4278]
[1642619826872,0.0022737,3128.7,3128.2,1.52408417]
[1642619827072,0.0022737,3128.7,3128.2,2.25188417]
[1642619827272,0.00170528,3128.6,3128.2,3.25188417]
[1642619827672,0.00113685,3128.5,3128.2,3.25188417]
[1642619828072,2.72435766,3129.2,3128.2,3.25188417]
[1642619828304,2.71924184,3129.1,3128.2,3.25188417]
[1642619828505,2.72378923,3129.1,3128.2,3.25188417]
[1642619828704,2.72322081,3129.0,3128.2,3.25188417]
[1642619828908,0.00397897,3129.0,3128.2,3.25188417]
[1642619829107,0.00341055,3128.9,3128.8,1.53262398]
[1642619829614,0.00341055,3128.9,3128.8,1.83262398]
[1642619829906,0.00341055,3128.9,3128.8,2.13262398]
[1642619830112,2.72263998,3128.9,3128.8,2.13262398]
[1642619830310,0.00341055,3128.9,3128.8,2.13262398]
[1642619832862,0.00341055,3128.9,3128.8,1.83262398]
[1642619833262,0.00341055,3128.9,3128.2,1.3]
[1642619833464,0.00341055,3128.9,3128.2,0.6]
[1642619833663,0.00284212,3128.8,3128.2,1.0]
[1642619834063,0.0022737,3128.7,3128.1,2.11929882]
[1642619834263,0.0022737,3128.7,3128.2,1.20244284]
[1642619834464,1.2071,3129.3,3128.2,1.50244284]
[1642619834465,0.00170528,3128.6,3128.2,1.50244284]
[1642619834665,0.00170528,3128.6,3128.2,2.50244284]
[1642619834867,0.00113685,3128.5,3128.2,2.50244284]
[1642619835269,0.00454739,3129.1,3128.2,2.50244284]
[1642619835467,2.71920893,3129.0,3128.8,1.17373654]
[1642619835808,0.00341055,3128.9,3128.8,1.77373654]
[1642619836205,0.00341055,3128.9,3128.8,5.62373654]
[1642619836406,0.00341055,3128.9,3128.8,5.75153654]
[1642619836605,0.00341055,3128.9,3128.8,6.75153654]
[1642619837813,0.00341055,3128.9,3128.8,7.20853654]
[1642619838612,2.71861196,3130.0,3129.7,1.23120637]
[1642619838811,4.25375574,3130.6,3129.7,1.53120637]
[1642619838812,2.71861196,3129.9,3129.7,1.53120637]
[1642619839111,1.65893792,3130.6,3129.7,1.53120637]
[1642619839112,2.72372777,3129.8,3129.7,1.83120637]
[1642619839556,2.71861196,3129.8,3129.7,2.83120637]
[1642619839755,0.00909477,3130.5,3129.7,2.83120637]
[1642619839956,2.71843313,3130.4,3129.7,3.71840637]
[1642619840160,2.72695948,3130.4,3129.7,3.71840637]
[1642619840462,2.72639105,3130.3,3129.7,3.71840637]
[1642619840657,2.71843313,3130.2,3129.7,3.71840637]
[1642619840859,0.0073895,3130.2,3129.7,3.71840637]
[1642619841058,0.00682108,3130.1,3129.7,3.71840637]
[1642619841460,0.00625265,3130.0,3129.7,3.71840637]
[1642619841861,0.00568423,3129.9,3129.7,3.71840637]
[1642619842262,0.00909477,3130.5,3129.7,3.71840637]
[1642619842662,0.00852635,3130.4,3129.7,3.71840637]
[1642619842862,0.00852635,3130.4,3129.7,2.71840637]
[1642619843065,0.00795792,3130.3,3129.8,1.0]
[1642619843504,0.0073895,3130.2,3129.7,2.83120637]
[1642619843905,1.29602631,3130.6,3129.7,2.83120637]
[1642619843906,0.00682108,3130.1,3129.7,2.83120637]
[1642619844306,0.00625265,3130.0,3129.7,0.6]
[1642619844507,0.00625265,3130.0,3129.7,0.3]
[1642619844706,0.00568423,3129.9,3129.7,0.3]
[1642619844907,0.00568423,3129.9,3129.6,1.057]
[1642619845108,0.00909477,3130.5,3129.6,1.057]
[1642619845513,0.00852635,3130.4,3129.6,2.54467803]
[1642619845909,0.00795792,3130.3,3129.7,1.28722446]
[1642619846311,0.0073895,3130.2,3129.7,1.28722446]
[1642619846710,0.00682108,3130.1,3129.7,2.28722446]
[1642619847150,0.00625265,3130.0,3129.7,2.28722446]
[1642619847450,0.00568423,3129.9,3129.7,2.28722446]
[1642619847854,0.00909477,3130.5,3129.7,2.28722446]
[1642619848057,0.00909477,3130.5,3129.7,3.03022446]
[1642619848357,0.00852635,3130.4,3129.7,3.03022446]
[1642619848755,0.00795792,3130.3,3129.7,3.03022446]
[1642619849156,0.0073895,3130.2,3129.7,3.03022446]
[1642619849556,0.00682108,3130.1,3129.7,3.03022446]
[1642619849855,0.00625265,3130.0,3129.7,3.03022446]
[1642619850255,0.00568423,3129.9,3129.7,3.03022446]
[1642619850456,0.00568423,3129.9,3129.7,3.15802446]
[1642619850655,0.00909477,3130.5,3129.7,3.15802446]
[1642619850917,0.00909477,3130.5,3129.7,3.03022446]
[1642619851113,1.29602631,3130.6,3129.7,3.03022446]
[1642619851114,0.00852635,3130.4,3129.7,3.03022446]
[1642619851518,0.00795792,3130.3,3129.7,3.03022446]
[1642619851718,0.00795792,3130.3,3129.7,5.95716103]
[1642619852018,0.0073895,3130.2,3129.7,3.15792446]
[1642619852416,0.00682108,3130.1,3129.7,3.15792446]
[1642619852818,0.00625265,3130.0,3129.7,3.15792446]
[1642619853219,0.00568423,3129.9,3129.7,3.15792446]
[1642619853618,0.00909477,3130.5,3129.7,3.15792446]
[1642619854020,0.00852635,3130.4,3129.7,3.15792446]
[1642619854421,1.29602631,3130.6,3129.7,3.15792446]
[1642619854422,0.00795792,3130.3,3129.7,3.15792446]
[1642619854659,0.00795792,3130.3,3129.7,5.78654056]
[1642619854860,1.29602631,3130.6,3129.7,5.78654056]
[1642619854861,0.0073895,3130.2,3129.7,3.03022446]
[1642619855058,0.0073895,3130.2,3129.8,0.1277]
[1642619855258,1.29602631,3130.6,3129.8,0.1277]
[1642619855259,0.00682108,3130.1,3129.8,0.1277]
[1642619855661,1.29602631,3130.6,3129.8,0.4277]
[1642619855662,0.00625265,3130.0,3129.8,0.4277]
[1642619856063,0.00568423,3129.9,3129.8,0.4277]
[1642619856260,0.00568423,3129.9,3129.8,0.3]
[1642619856461,0.00568423,3129.9,3129.7,2.31482446]
[1642619857264,0.00568423,3129.9,3129.7,2.61482446]
[1642619857460,0.00568423,3129.9,3129.7,3.91482446]
[1642619858515,0.00568423,3129.9,3129.7,3.86482446]
[1642619861517,0.00568423,3129.9,3129.7,4.09632446]
[1642619863362,0.00568423,3129.9,3129.7,4.04632446]
[1642619864663,0.00568423,3129.9,3129.8,0.1278]
[1642619864863,0.00568423,3129.9,3129.8,0.5848]
[1642619865065,0.00568423,3129.9,3129.8,1.5848]
[1642619865904,0.00568423,3129.9,3129.8,1.457]
[1642619866716,0.00568423,3129.9,3129.8,2.5517]
[1642619866916,3.6094,3130.8,3129.9,5.7]
[1642619867116,14.9907,3131.1,3130.0,1.5847]
[1642619867311,2.71789562,3131.0,3130.3,0.7983]
[1642619867510,2.71789562,3131.0,3130.3,1.3983]
[1642619867711,0.00568423,3130.9,3130.4,0.457]
[1642619867910,2.71789562,3130.8,3130.4,0.457]
[1642619868115,2.72301143,3130.8,3130.7,1.09002496]
[1642619868311,2.71789562,3130.8,3130.7,1.69002496]
[1642619868512,2.71789562,3131.0,3130.7,1.69002496]
[1642619868911,2.72414828,3131.0,3130.7,1.69002496]
[1642619869113,2.71789562,3130.9,3130.7,1.69002496]
[1642619869558,0.00511581,3130.8,3130.7,1.69002496]
[1642619869761,2.72301143,3130.8,3130.7,1.69002496]
[1642619870763,0.00511581,3130.8,3130.7,1.69002496]
[1642619871364,0.00511581,3130.8,3130.7,0.3]
[1642619871565,2.72295626,3130.8,3130.7,0.3]
[1642619871967,2.72295626,3130.8,3130.2,0.457]
[1642619872165,2.71784045,3130.7,3130.2,0.3]
[1642619872367,2.72238784,3130.7,3130.2,0.3]
[1642619872566,2.72181941,3130.6,3129.9,1.40177323]
[1642619872768,0.00397896,3130.6,3129.9,1.40177323]
[1642619872967,0.00341054,3130.5,3129.9,2.40177323]
[1642619873304,0.00284212,3130.4,3129.9,2.40177323]
[1642619873604,0.00227369,3130.3,3129.9,1.40177323]
[1642619874008,0.00170527,3130.2,3129.9,1.40177323]
[1642619874411,0.00113685,3130.1,3129.9,4.23722086]
[1642619874612,0.00113685,3130.1,3130.0,4.5]
[1642619874809,2.15391253,3131.3,3130.0,4.5]
[1642619874810,2.71805365,3130.7,3130.0,4.5]
[1642619875008,0.00113685,3130.1,3130.0,4.8]
[1642619875707,0.00113685,3130.1,3130.0,5.257]
[1642619877553,0.02233704,3130.1,3130.0,5.257]
[1642619877759,0.02233704,3130.1,3130.0,8.00430206]
[1642619878360,0.02233704,3130.1,3130.0,5.26030356]
[1642619883112,0.02233704,3130.1,3130.0,0.76030356]
[1642619883311,0.02233704,3130.1,3130.0,0.46030356]
[1642619884558,0.02233704,3130.1,3130.0,0.76030356]
[1642619885561,0.02233704,3130.1,3130.0,0.74241846]
[1642619886767,2.74046899,3130.1,3130.0,0.28541846]
[1642619886967,2.74046899,3130.1,3130.0,0.00330356]
[1642619887367,2.74048674,3130.1,3130.0,0.00330356]
[1642619887571,2.74046948,3130.1,3129.6,1.30330356]
[1642619887767,0.02233704,3130.1,3129.6,1.30330356]
[1642619887968,2.71821362,3130.0,3129.7,0.00113685]
[1642619888715,0.02233704,3130.1,3129.7,0.00113685]
[1642619890918,0.02233704,3130.1,3130.0,1.35617361]
[1642619891319,0.02233704,3130.1,3130.0,1.65617361]
[1642619892560,0.02233704,3130.1,3130.0,1.65947717]
[1642619896326,2.74043631,3130.1,3130.0,1.65947717]
[1642619896525,0.02233704,3130.1,3130.0,1.65947717]
[1642619900479,0.02233704,3130.1,3130.0,4.65947717]
[1642619901077,0.02233704,3130.1,3130.0,7.53590485]
[1642619901276,8.1731,3130.9,3130.1,5.7]
[1642619901475,2.7176178,3130.8,3130.3,0.79835]
[1642619901674,2.7176178,3130.8,3130.4,2.86627548]
[1642619901675,2.72159676,3130.8,3130.4,2.86627548]
[1642619901876,0.00397896,3130.8,3130.4,3.16627548]
[1642619902277,0.00397896,3130.8,3130.5,1.4250306]
[1642619902476,0.00397896,3130.8,3130.6,1.17843619]
[1642619902676,0.00397896,3130.8,3130.6,1.63543619]
[1642619903515,0.00397896,3130.8,3130.7,2.77267743]
[1642619903716,0.00397896,3130.8,3130.6,1.63543619]
[1642619904116,0.00341054,3130.7,3130.6,1.63543619]
[1642619905316,0.00341054,3130.7,3130.6,4.3454854]
[1642619905517,0.00341054,3130.7,3130.6,1.63543619]
[1642619905721,0.00341054,3130.7,3130.6,4.38192971]
[1642619907091,0.00341054,3130.7,3130.6,1.76313619]
[1642619907482,0.00341054,3130.7,3130.6,4.41313619]
[1642619907679,0.00341054,3130.7,3130.6,7.14507999]
[1642619907878,0.00341054,3130.7,3130.6,4.41654624]
[1642619908079,0.00341054,3130.7,3130.6,7.00253651]
[1642619908687,0.00341054,3130.7,3130.6,4.28884624]
[1642619908887,0.00341054,3130.7,3130.6,7.86439676]
[1642619909087,2.71755122,3131.4,3130.7,5.7]
[1642619909287,2.5687233,3131.9,3130.9,5.7]
[1642619909488,0.00397896,3131.4,3131.0,0.457]
[1642619909788,2.5687233,3131.9,3131.2,5.74806]
[1642619909986,2.5687233,3131.9,3131.3,0.457]
[1642619910186,0.0022737,3131.8,3131.3,0.457]
[1642619910387,0.0022737,3131.8,3131.3,0.757]
[1642619910587,1.5687233,3131.9,3131.4,5.2]
[1642619910588,1.04759902,3131.9,3131.4,5.2]
[1642619910828,1.04759902,3131.9,3131.5,0.457]
[1642619911024,1.04759902,3131.9,3131.5,0.75813684]
[1642619911220,1.04759902,3131.9,3131.6,2.92756797]
[1642619911424,1.04759902,3131.9,3131.7,0.457]
[1642619911621,1.04759902,3131.9,3131.7,0.757]
[1642619911920,1.04759902,3131.9,3131.8,1.14717366]
[1642619912121,1.04759902,3131.9,3131.8,1.60417366]
[1642619912322,1.04873587,3131.9,3131.8,1.60417366]
[1642619913730,0.99873587,3131.9,3131.8,1.60417366]
[1642619914130,0.99873587,3131.9,3131.8,4.4021465]
[1642619914563,0.99873587,3131.9,3131.8,5.9979865]
[1642619914768,0.99873587,3131.9,3131.8,5.89020028]
[1642619915670,0.99873587,3131.9,3131.8,3.20001366]
[1642619915872,0.99873587,3131.9,3131.8,5.88421287]
[1642619916469,0.99873587,3131.9,3131.8,5.8943702]
[1642619916670,0.99873587,3131.9,3131.8,3.20001366]
[1642619917270,0.99873587,3131.9,3131.8,5.90462138]
[1642619917672,0.99873587,3131.9,3131.8,5.90859492]
[1642619918718,0.99873587,3131.9,3131.8,5.89339528]
[1642619919122,0.99873587,3131.9,3131.8,5.91024843]
[1642619919320,0.99873587,3131.9,3131.8,3.2039872]
[1642619919921,0.99873587,3131.9,3131.8,5.92986203]
[1642619920120,0.99873587,3131.9,3131.8,3.2039872]
[1642619921320,0.99873587,3131.9,3131.8,6.03818243]
[1642619922168,4.3706,3133.1,3131.9,5.7]
[1642619922376,4.3706,3133.1,3132.0,4.04356815]
[1642619922575,0.00625266,3133.0,3132.0,4.17106815]
[1642619922975,0.00568423,3132.9,3132.1,1.59566]
[1642619923175,0.00568423,3132.9,3132.3,2.72925994]
[1642619923374,0.00511581,3132.8,3132.5,0.79782]
[1642619923577,0.00511581,3132.8,3132.6,3.17725536]
[1642619923781,7.5967,3133.2,3132.6,3.17725536]
[1642619923782,3.9018,3133.3,3132.7,2.65]
[1642619923975,3.9018,3133.3,3132.8,0.457]
[1642619924175,0.00625266,3133.0,3132.8,1.457]
[1642619924377,0.00625266,3133.0,3132.8,1.757]
[1642619924675,0.00568423,3132.9,3132.8,2.55472]
[1642619924874,0.00568423,3132.9,3132.8,3.83369785]
[1642619925475,3.8875,3133.7,3132.9,3.35]
[1642619925676,3.8875,3133.7,3133.0,1.457]
[1642619925919,0.00397897,3133.6,3133.0,0.757]
[1642619926118,3.8875,3133.7,3133.0,1.757]
[1642619926119,3.84147897,3133.7,3133.0,1.757]
[1642619926327,3.84147897,3133.7,3133.0,1.057]
[1642619926520,3.84147897,3133.7,3133.1,0.00284212]
[1642619927724,3.84147897,3133.7,3133.2,0.00391022]
[1642619928125,3.84147897,3133.7,3133.3,0.00170527]
[1642619929124,3.84147897,3133.7,3133.2,0.00391022]
[1642619929125,5.7,3133.6,3133.2,0.00391022]
[1642619929327,2.71594871,3133.5,3133.2,0.00391022]
[1642619930275,5.71210365,3133.3,3133.2,0.00391022]
[1642619930675,4.05,3133.2,3132.6,0.1275]
[1642619930976,4.05,3133.2,3132.7,0.00341054]
[1642619931578,4.05,3133.2,3132.0,0.00738951]
[1642619931775,4.05,3133.2,3132.1,0.1275]
[1642619932175,4.05,3133.2,3132.2,0.00625266]
[1642619932579,4.05,3133.2,3132.9,0.00458001]
[1642619932977,4.05,3133.2,3133.0,0.00170527]
[1642619933177,5.05,3133.2,3133.0,0.00170527]
[1642619933632,5.05,3133.2,3132.9,0.00458001]
[1642619933633,5.0,3133.1,3132.9,0.00458001]
[1642619937267,6.0,3133.1,3132.9,0.00458001]
[1642619937668,6.0,3133.1,3132.2,1.65227592]
[1642619937867,6.0,3133.1,3132.2,1.95227592]
[1642619938072,6.0,3133.1,3132.3,0.00397897]
[1642619939876,2.71624926,3133.0,3132.3,0.00397897]
[1642619940280,3.71624926,3133.0,3132.3,0.00397897]
[1642619940482,1.0,3133.0,3132.3,0.00397897]
[1642619940947,2.71623893,3132.9,3132.3,0.00397897]
[1642619941144,1.0,3133.0,3132.3,0.00397897]
[1642619941344,1.0,3132.9,3132.3,0.00397897]
[1642619942344,1.0,3133.1,3132.3,0.00397897]
[1642619942644,1.0,3133.1,3132.5,0.00345309]
[1642619942844,2.71608706,3133.0,3132.5,0.00345309]
[1642619943045,2.71608706,3133.0,3132.6,0.0022737]
[1642619944245,1.0,3132.9,3132.6,0.0022737]
[1642619946378,1.0,3133.1,3132.6,0.0022737]
[1642619946579,2.71601512,3133.0,3132.6,0.0022737]
[1642619947579,2.71601512,3133.0,3132.8,0.00458604]
[1642619947781,8.41601512,3132.9,3132.8,0.00458604]
[1642619947984,10.68791512,3132.9,3132.8,0.00458604]
[1642619948180,5.7,3132.8,3131.2,0.1275]
[1642619948421,3.00390512,3132.7,3131.2,0.1275]
[1642619948721,2.71601512,3132.6,3131.5,1.2287623]
[1642619948920,9.80163685,3132.8,3131.5,1.2287623]
[1642619948921,2.71601512,3132.5,3131.6,0.1277]
[1642619949121,2.71601512,3132.4,3131.6,0.13338423]
[1642619949322,2.71601512,3132.3,3131.7,0.00511581]
[1642619949521,9.67393685,3132.8,3131.7,1.12520758]
[1642619949731,2.71648548,3132.7,3131.7,1.12009177]
[1642619949926,2.71648548,3132.7,3131.8,0.30454738]
[1642619950327,2.71648548,3132.7,3131.9,0.00397896]
[1642619951331,1.0,3132.4,3131.9,0.00397896]
[1642619951529,2.71648548,3132.3,3131.9,0.00397896]
[1642619952172,1.0,3132.4,3131.9,0.00397896]
[1642619952377,0.16019,3132.6,3131.8,0.20397896]
[1642619952378,3.7164707,3132.3,3131.8,0.20397896]
[1642619952575,2.7164707,3132.2,3132.1,0.00386391]
[1642619952772,2.71817597,3132.2,3131.8,0.20397896]
[1642619953178,0.00113685,3132.1,3131.8,0.20397896]
[1642619953376,0.00113685,3132.1,3130.9,0.1277]
[1642619953778,2.71760755,3132.1,3131.0,0.00511581]
[1642619954077,2.71760755,3132.1,3131.1,1.22586196]
[1642619954376,2.71760755,3132.1,3131.2,0.00397896]
[1642619954577,2.71760755,3132.1,3131.4,1.40311102]
[1642619954776,2.71760755,3132.1,3131.4,1.70311102]
[1642619954980,2.71760755,3132.1,3131.5,0.00227369]
[1642619955822,2.71760755,3132.1,3131.5,0.30227369]
[1642619956021,2.71760755,3132.1,3131.2,0.3]
[1642619956022,2.71760755,3132.1,3131.3,0.00341054]
[1642619956222,3.71760755,3132.1,3131.6,0.00170527]
[1642619956422,2.7164707,3132.0,3131.3,0.00341054]
[1642619956624,2.7164707,3132.0,3131.2,0.00397896]
[1642619956922,2.7164707,3132.0,3131.3,0.1277]
[1642619957323,2.7164707,3132.0,3131.4,0.00284212]
[1642619957526,0.00113685,3132.1,3131.4,0.00284212]
[1642619957527,2.7164707,3131.9,3131.4,0.00284212]
[1642619957724,0.00113685,3132.1,3131.4,1.31751472]
[1642619957925,2.71776242,3132.1,3131.4,1.3146726]
[1642619958124,2.71776242,3132.1,3131.5,0.00227369]
[1642619958324,3.71776242,3132.1,3131.5,0.00227369]
[1642619958526,2.71662557,3132.0,3131.5,0.00227369]
[1642619959429,0.00113685,3132.1,3131.5,0.00227369]
[1642619959675,2.71768102,3132.1,3131.5,0.00227369]
[1642619959878,2.71654417,3132.0,3131.5,0.00227369]
[1642619960079,0.00113685,3132.1,3131.5,0.00227369]
[1642619960477,2.71766886,3132.1,3131.5,0.00227369]
[1642619963524,2.71766886,3132.1,3131.5,0.12997369]
[1642619963823,0.00113685,3132.1,3131.6,0.00170527]
[1642619966631,0.00113685,3132.1,3131.7,0.8961833]
[1642619966830,0.00113685,3132.1,3131.8,0.3]
[1642619967075,0.00113685,3132.1,3131.9,0.1277]
[1642619967270,0.00113685,3132.1,3131.8,0.8847]
[1642619967874,0.00113685,3132.1,3131.9,1.35291634]
[1642619968072,0.00113685,3132.1,3131.9,1.65291634]
[1642619968472,0.00113685,3132.1,3131.9,2.65291634]
[1642619972735,0.00113685,3132.1,3132.0,4.057]
[1642619973143,0.00113685,3132.1,3132.0,5.357]
[1642619979835,0.00113685,3132.1,3132.0,0.757]
[1642619980641,0.00113685,3132.1,3132.0,3.757]
[1642619981042,0.00113685,3132.1,3132.0,4.757]
[1642619983194,2.71613211,3132.6,3132.0,4.757]
[1642619983195,2.71613211,3132.6,3132.0,3.757]
[1642619983599,0.00341054,3132.5,3132.0,0.757]
[1642619983994,0.00284212,3132.4,3132.0,0.757]
[1642619984396,0.00227369,3132.3,3132.0,0.757]
[1642619984795,0.00170527,3132.2,3132.0,0.757]
[1642619985195,0.00113685,3132.1,3132.0,0.757]
[1642619985596,0.00113685,3132.1,3132.0,5.507]
[1642619985823,0.00113685,3132.1,3132.0,6.507]
[1642619995929,0.00113685,3132.1,3132.0,1.757]
[1642619996133,3.98817834,3133.1,3132.1,5.03148056]
[1642619996332,3.7647,3133.6,3132.3,0.02253027]
[1642619996535,0.00284211,3132.6,3132.4,5.8275]
[1642619996730,3.7647,3133.6,3132.5,5.7]
[1642619996929,3.7647,3133.6,3132.6,0.5845]
[1642619997176,0.00511581,3133.5,3133.1,1.11603336]
[1642619997478,0.00454739,3133.4,3133.2,0.7977]
[1642619997677,0.00454739,3133.4,3133.2,0.6]
[1642619997877,0.00397897,3133.3,3133.2,0.3]
[1642619998477,0.00397897,3133.3,3133.1,1.057]
[1642619998877,0.00341054,3133.2,3133.1,1.057]
[1642620000280,0.00341054,3133.2,3133.1,4.157]
[1642620002127,0.00341054,3133.2,3133.1,5.157]
[1642620002831,0.01253251,3133.2,3133.1,5.157]
[1642620003028,0.01253251,3133.2,3133.1,0.6]
[1642620003229,0.01253251,3133.2,3132.6,0.457]
[1642620003428,0.01253251,3133.2,3132.3,0.5845]
[1642620003628,0.00284212,3133.1,3132.3,0.457]
[1642620003828,0.00284212,3133.1,3132.4,0.00113684]
[1642620004026,0.00912197,3133.2,3132.4,0.00113684]
[1642620004027,0.0022737,3133.0,3132.4,0.00113684]
[1642620004428,0.00170527,3132.9,3132.4,0.00113684]
[1642620004880,0.00113685,3132.8,3132.4,0.00113684]
[1642620005282,0.00912197,3133.2,3132.2,2.83900672]
[1642620005283,0.00284212,3133.1,3132.3,0.00170527]
[1642620005680,0.0022737,3133.0,3132.3,0.00170527]
[1642620005880,0.0022737,3133.0,3132.3,0.79964527]
[1642620006080,0.00170527,3132.9,3132.3,1.09964527]
[1642620006483,0.00113685,3132.8,3132.3,0.30170527]
[1642620006886,0.00284212,3133.1,3132.3,0.30170527]
[1642620007083,0.00284212,3133.1,3132.3,0.00170527]
[1642620007282,0.0022737,3133.0,3132.3,0.00170527]
[1642620007683,0.00911131,3132.8,3132.3,0.00170527]
[1642620011544,0.1275,3132.7,3132.3,0.00170527]
[1642620011745,0.16019,3132.6,3132.3,0.00170527]
[1642620012179,0.16019,3132.6,3131.5,0.03]
[1642620012180,18.67,3132.4,3131.5,0.03]
[1642620012577,0.16019,3132.3,3131.6,0.00397896]
[1642620013983,0.16019,3132.3,3131.2,0.13395265]
[1642620014180,0.16019,3132.3,3131.3,0.00568423]
[1642620015284,0.00113685,3132.5,3131.3,0.00568423]
[1642620015482,0.00113685,3132.5,3131.3,0.80388423]
[1642620015684,0.00113685,3132.5,3131.3,1.10388423]
[1642620015922,0.00113685,3132.5,3131.4,0.00511581]
[1642620016523,0.00113685,3132.5,3131.9,1.32794531]
[1642620016823,0.00113685,3132.5,3132.0,0.00170527]
[1642620017526,0.00113685,3132.5,3132.1,1.33604233]
[1642620017726,0.00113685,3132.5,3132.1,1.63604233]